[Event "Early-Titled-Tuesday-Blitz-February-27-2024"]
[Site "Chess.com"]
[Date "2024.02.27"]
[Round "4"]
[White "SaqoChess_Twitch"]
[Black "kibromNNN"]
[Result "1-0"]
[WhiteElo "2598"]
[BlackElo "1793"]
[TimeControl "180+1"]
[EndTime "8:36:12 PST"]
[Termination "SaqoChess_Twitch won on time"]

1. d4 {[%clk 0:03:00.9]} 1... Nf6 {[%clk 0:02:56]} 2. c4 {[%clk 0:03:00.9]} 2...
e6 {[%clk 0:02:55.3]} 3. Nc3 {[%clk 0:02:56]} 3... d5 {[%clk 0:02:54.5]} 4. cxd5
{[%clk 0:02:56.1]} 4... exd5 {[%clk 0:02:52.1]} 5. Bg5 {[%clk 0:02:55.8]} 5...
Be7 {[%clk 0:02:49.4]} 6. e3 {[%clk 0:02:56.2]} 6... c6 {[%clk 0:02:46.1]} 7.
Bd3 {[%clk 0:02:56.3]} 7... O-O {[%clk 0:02:43.4]} 8. Qc2 {[%clk 0:02:56.1]}
8... Nbd7 {[%clk 0:02:39.5]} 9. Nf3 {[%clk 0:02:55.9]} 9... Re8 {[%clk
0:02:35.8]} 10. O-O {[%clk 0:02:54.7]} 10... Nf8 {[%clk 0:02:33.1]} 11. Bxf6
{[%clk 0:02:54.3]} 11... Bxf6 {[%clk 0:02:32.2]} 12. b4 {[%clk 0:02:55.2]} 12...
a6 {[%clk 0:02:26.5]} 13. a4 {[%clk 0:02:55.3]} 13... Bg4 {[%clk 0:02:24.7]} 14.
Nd2 {[%clk 0:02:55]} 14... Bh5 {[%clk 0:02:19.8]} 15. b5 {[%clk 0:02:55.1]}
15... Qd7 {[%clk 0:02:09.6]} 16. bxc6 {[%clk 0:02:55]} 16... bxc6 {[%clk
0:02:06.6]} 17. a5 {[%clk 0:02:52.3]} 17... Bg6 {[%clk 0:02:05.1]} 18. Na4
{[%clk 0:02:51.7]} 18... Bxd3 {[%clk 0:01:49.1]} 19. Qxd3 {[%clk 0:02:51.9]}
19... Qd6 {[%clk 0:01:40.2]} 20. Nc5 {[%clk 0:02:48.2]} 20... Ne6 {[%clk
0:01:22.9]} 21. Nxa6 {[%clk 0:02:42.6]} 21... Bd8 {[%clk 0:01:17]} 22. Nb3
{[%clk 0:02:38.8]} 22... Re7 {[%clk 0:01:09.3]} 23. Nac5 {[%clk 0:02:38.9]}
23... Nxc5 {[%clk 0:01:02.4]} 24. dxc5 {[%clk 0:02:37.7]} 24... Qe5 {[%clk
0:00:53.4]} 25. a6 {[%clk 0:02:37.4]} 25... Re6 {[%clk 0:00:48.1]} 26. Nd4
{[%clk 0:02:35.9]} 26... Rh6 {[%clk 0:00:45.8]} 27. h3 {[%clk 0:02:35.6]} 27...
Rg6 {[%clk 0:00:42.9]} 28. f4 {[%clk 0:02:29.9]} 28... Qh5 {[%clk 0:00:36.2]}
29. Kh2 {[%clk 0:02:29.7]} 29... Bh4 {[%clk 0:00:29.2]} 30. Rf3 {[%clk
0:02:28.6]} 30... h6 {[%clk 0:00:17.8]} 31. a7 {[%clk 0:02:27.1]} 31... Bd8
{[%clk 0:00:13.7]} 32. Qb1 {[%clk 0:02:23.2]} 32... Bc7 {[%clk 0:00:13.2]} 33.
Qb7 {[%clk 0:02:22.5]} 33... Rxg2+ {[%clk 0:00:04.9]} 34. Kxg2 {[%clk
0:02:21.9]} 34... Qg5+ {[%clk 0:00:04.4]} 35. fxg5 {[%clk 0:02:21.8]} 1-0

[Event "Early-Titled-Tuesday-Blitz-February-27-2024"]
[Site "Chess.com"]
[Date "2024.02.27"]
[Round "4"]
[White "AlexeiShirov"]
[Black "Elprofessor21"]
[Result "1-0"]
[WhiteElo "2861"]
[BlackElo "2666"]
[TimeControl "180+1"]
[EndTime "8:36:14 PST"]
[Termination "AlexeiShirov won by resignation"]

1. e4 {[%clk 0:03:00.9]} 1... c5 {[%clk 0:02:57.9]} 2. Nf3 {[%clk 0:03:00.5]}
2... e6 {[%clk 0:02:57.1]} 3. d4 {[%clk 0:03:00.2]} 3... cxd4 {[%clk 0:02:57.6]}
4. Nxd4 {[%clk 0:03:00.2]} 4... Nf6 {[%clk 0:02:58.1]} 5. Nc3 {[%clk 0:03:00]}
5... Nc6 {[%clk 0:02:56.2]} 6. Nxc6 {[%clk 0:02:59.3]} 6... bxc6 {[%clk
0:02:56.4]} 7. e5 {[%clk 0:02:59.5]} 7... Nd5 {[%clk 0:02:56.2]} 8. Ne4 {[%clk
0:02:59.5]} 8... Qc7 {[%clk 0:02:56.5]} 9. f4 {[%clk 0:02:58.6]} 9... Qb6 {[%clk
0:02:56.5]} 10. c4 {[%clk 0:02:58.5]} 10... Ne3 {[%clk 0:02:49.6]} 11. Qd3
{[%clk 0:02:57.7]} 11... Bb4+ {[%clk 0:02:47.5]} 12. Bd2 {[%clk 0:02:56.5]}
12... O-O {[%clk 0:02:47.5]} 13. b3 {[%clk 0:02:33.1]} 13... f5 {[%clk
0:02:44.4]} 14. Nc3 {[%clk 0:02:14.5]} 14... Ng4 {[%clk 0:02:32.3]} 15. Nd1
{[%clk 0:02:07.8]} 15... Bc5 {[%clk 0:01:53.3]} 16. Be2 {[%clk 0:02:01.4]} 16...
Nf2 {[%clk 0:01:51.5]} 17. Nxf2 {[%clk 0:01:59.9]} 17... Bxf2+ {[%clk 0:01:52]}
18. Kf1 {[%clk 0:01:57.6]} 18... Bd4 {[%clk 0:01:51.9]} 19. Rd1 {[%clk
0:01:55.3]} 19... c5 {[%clk 0:01:50.7]} 20. Be3 {[%clk 0:01:51.4]} 20... Bxe3
{[%clk 0:01:49.5]} 21. Qxe3 {[%clk 0:01:51.1]} 21... Bb7 {[%clk 0:01:49.2]} 22.
Kf2 {[%clk 0:01:50.2]} 22... Bc6 {[%clk 0:01:46.6]} 23. Bf3 {[%clk 0:01:43]}
23... Bxf3 {[%clk 0:01:34.3]} 24. Qxf3 {[%clk 0:01:35.3]} 24... a5 {[%clk
0:01:18.9]} 25. Rxd7 {[%clk 0:01:30.7]} 25... a4 {[%clk 0:01:19.2]} 26. Rb7
{[%clk 0:01:25.9]} 26... Qa5 {[%clk 0:01:16.6]} 27. Rd1 {[%clk 0:01:23.5]} 27...
axb3 {[%clk 0:01:05]} 28. Rdd7 {[%clk 0:01:20.6]} 1-0

[Event "Early-Titled-Tuesday-Blitz-February-27-2024"]
[Site "Chess.com"]
[Date "2024.02.27"]
[Round "4"]
[White "dorpato"]
[Black "GAusal"]
[Result "0-1"]
[WhiteElo "2103"]
[BlackElo "2300"]
[TimeControl "180+1"]
[EndTime "8:36:16 PST"]
[Termination "GAusal won by resignation"]

1. e4 {[%clk 0:02:56.2]} 1... c5 {[%clk 0:02:57.7]} 2. Nc3 {[%clk 0:02:54.3]}
2... e6 {[%clk 0:02:57.9]} 3. g3 {[%clk 0:02:52.5]} 3... Nc6 {[%clk 0:02:56.8]}
4. Bg2 {[%clk 0:02:50.6]} 4... g6 {[%clk 0:02:56.9]} 5. d3 {[%clk 0:02:48.8]}
5... Bg7 {[%clk 0:02:56.9]} 6. Be3 {[%clk 0:02:46.4]} 6... b6 {[%clk 0:02:53.7]}
7. Qd2 {[%clk 0:02:45.6]} 7... Nge7 {[%clk 0:02:52.3]} 8. Bh6 {[%clk 0:02:40.6]}
8... O-O {[%clk 0:02:51.2]} 9. h4 {[%clk 0:02:27.9]} 9... Nd4 {[%clk 0:02:48]}
10. Bxg7 {[%clk 0:02:07.4]} 10... Kxg7 {[%clk 0:02:47.1]} 11. h5 {[%clk
0:02:01]} 11... Rh8 {[%clk 0:02:32.9]} 12. O-O-O {[%clk 0:01:53.3]} 12... Bb7
{[%clk 0:02:30.9]} 13. f4 {[%clk 0:01:50.1]} 13... f5 {[%clk 0:02:29.7]} 14.
Nge2 {[%clk 0:01:29.3]} 14... Nxe2+ {[%clk 0:02:28.3]} 15. Qxe2 {[%clk 0:01:16]}
15... Qc7 {[%clk 0:02:28.5]} 16. exf5 {[%clk 0:00:38.4]} 16... Nxf5 {[%clk
0:02:26.7]} 17. Bxb7 {[%clk 0:00:35.5]} 17... Qxb7 {[%clk 0:02:25.9]} 18. g4
{[%clk 0:00:31.1]} 18... Nd4 {[%clk 0:02:17.6]} 19. Qe5+ {[%clk 0:00:28.7]}
19... Kf7 {[%clk 0:02:17.7]} 20. Ne4 {[%clk 0:00:23.9]} 20... Qd5 {[%clk
0:01:50]} 21. Qf6+ {[%clk 0:00:18.1]} 21... Ke8 {[%clk 0:01:49.8]} 22. Qxh8+
{[%clk 0:00:16.8]} 22... Ke7 {[%clk 0:01:50.1]} 23. Qg7+ {[%clk 0:00:15.8]}
23... Kd8 {[%clk 0:01:49.3]} 24. Nf6 {[%clk 0:00:15.2]} 24... Qg2 {[%clk
0:01:46.1]} 25. Qf8+ {[%clk 0:00:14.8]} 25... Kc7 {[%clk 0:01:44.8]} 26. Rd2
{[%clk 0:00:12.6]} 26... Qxh1+ {[%clk 0:01:44.3]} 27. Rd1 {[%clk 0:00:12.9]}
27... Qg2 {[%clk 0:01:44.3]} 28. Rd2 {[%clk 0:00:13.1]} 28... Qf1+ {[%clk
0:01:43.6]} 29. Rd1 {[%clk 0:00:13.5]} 29... Qxf4+ {[%clk 0:01:43.1]} 30. Kb1
{[%clk 0:00:13.3]} 30... Rxf8 {[%clk 0:01:43.2]} 0-1

[Event "Early-Titled-Tuesday-Blitz-February-27-2024"]
[Site "Chess.com"]
[Date "2024.02.27"]
[Round "4"]
[White "VladimirBugayev"]
[Black "AsaHoffmann"]
[Result "1-0"]
[WhiteElo "2237"]
[BlackElo "2448"]
[TimeControl "180+1"]
[EndTime "8:36:17 PST"]
[Termination "VladimirBugayev won by resignation"]

1. e4 {[%clk 0:03:00.9]} 1... d6 {[%clk 0:02:53.9]} 2. Nc3 {[%clk 0:02:58.5]}
2... c6 {[%clk 0:02:49.1]} 3. Bc4 {[%clk 0:02:54.2]} 3... Nf6 {[%clk 0:02:48]}
4. Bb3 {[%clk 0:02:54.5]} 4... d5 {[%clk 0:02:47.6]} 5. e5 {[%clk 0:02:54]} 5...
Nfd7 {[%clk 0:02:47.1]} 6. f4 {[%clk 0:02:52.5]} 6... Nc5 {[%clk 0:02:46.5]} 7.
d4 {[%clk 0:02:43.7]} 7... Nxb3 {[%clk 0:02:42]} 8. axb3 {[%clk 0:02:44.6]} 8...
Bf5 {[%clk 0:02:41.6]} 9. g4 {[%clk 0:02:40.1]} 9... Bc8 {[%clk 0:02:29.6]} 10.
h3 {[%clk 0:02:28.9]} 10... h5 {[%clk 0:02:26.3]} 11. f5 {[%clk 0:02:10.6]}
11... hxg4 {[%clk 0:02:19.9]} 12. Qxg4 {[%clk 0:02:10.8]} 12... Qd7 {[%clk
0:02:17.1]} 13. e6 {[%clk 0:02:07.6]} 13... fxe6 {[%clk 0:02:16.6]} 14. Qg6+
{[%clk 0:01:57.8]} 14... Kd8 {[%clk 0:02:16.2]} 15. Bg5 {[%clk 0:01:55.5]} 15...
exf5 {[%clk 0:02:14.4]} 16. Nf3 {[%clk 0:01:52.3]} 16... Qe6+ {[%clk 0:02:14.1]}
17. Ne5 {[%clk 0:01:51]} 17... Qxg6 {[%clk 0:01:58.9]} 18. Nxg6 {[%clk
0:01:50.5]} 18... Rg8 {[%clk 0:01:58.8]} 19. b4 {[%clk 0:01:37.2]} 19... Nd7
{[%clk 0:01:55.1]} 20. b5 {[%clk 0:01:36.3]} 20... Ke8 {[%clk 0:01:52.3]} 21. h4
{[%clk 0:01:33.8]} 21... Kf7 {[%clk 0:01:50.8]} 22. h5 {[%clk 0:01:34]} 22... e6
{[%clk 0:01:37.8]} 23. bxc6 {[%clk 0:01:15.6]} 23... b6 {[%clk 0:01:37.7]} 24.
cxd7 {[%clk 0:01:12.8]} 24... Bxd7 {[%clk 0:01:37.2]} 25. Ne5+ {[%clk
0:01:10.4]} 25... Ke8 {[%clk 0:01:36.4]} 26. Ne2 {[%clk 0:01:06.6]} 26... Bd6
{[%clk 0:01:35.2]} 27. Nf4 {[%clk 0:01:05.8]} 27... Bxe5 {[%clk 0:01:32.6]} 28.
dxe5 {[%clk 0:01:06.7]} 28... Kf7 {[%clk 0:01:31.4]} 29. c3 {[%clk 0:01:03.8]}
29... a5 {[%clk 0:01:31.1]} 30. Kd2 {[%clk 0:01:03.7]} 30... Rac8 {[%clk
0:01:31]} 31. b4 {[%clk 0:01:01.2]} 31... Rc4 {[%clk 0:01:30.5]} 32. bxa5 {[%clk
0:01:00.5]} 32... bxa5 {[%clk 0:01:28.1]} 33. Rxa5 {[%clk 0:01:00.4]} 33... Rgc8
{[%clk 0:01:27.7]} 34. Ra7 {[%clk 0:01:00.6]} 34... R8c7 {[%clk 0:01:26.6]} 35.
Rxc7 {[%clk 0:01:00.1]} 35... Rxc7 {[%clk 0:01:26.3]} 36. h6 {[%clk 0:01:00.5]}
36... gxh6 {[%clk 0:01:25.7]} 37. Rxh6 {[%clk 0:01:01.4]} 37... Ra7 {[%clk
0:01:23.5]} 38. Rh7+ {[%clk 0:01:01.2]} 38... Ke8 {[%clk 0:01:21.8]} 39. Re7+
{[%clk 0:01:01]} 39... Kf8 {[%clk 0:01:18.4]} 40. Nxe6+ {[%clk 0:01:00.9]} 40...
Bxe6 {[%clk 0:01:16.8]} 41. Rxa7 {[%clk 0:01:00.6]} 1-0

[Event "Early-Titled-Tuesday-Blitz-February-27-2024"]
[Site "Chess.com"]
[Date "2024.02.27"]
[Round "4"]
[White "biostatistician"]
[Black "LyonBeast"]
[Result "0-1"]
[WhiteElo "2566"]
[BlackElo "3140"]
[TimeControl "180+1"]
[EndTime "8:36:20 PST"]
[Termination "LyonBeast won on time"]

1. d4 {[%clk 0:03:00]} 1... Nf6 {[%clk 0:02:59.8]} 2. Nf3 {[%clk 0:03:00.1]}
2... e6 {[%clk 0:03:00.2]} 3. c4 {[%clk 0:03:00.4]} 3... d5 {[%clk 0:03:00.4]}
4. Nc3 {[%clk 0:03:00.5]} 4... dxc4 {[%clk 0:03:00.1]} 5. e3 {[%clk 0:03:00]}
5... a6 {[%clk 0:02:58.9]} 6. Bxc4 {[%clk 0:03:00.2]} 6... b5 {[%clk 0:02:59]}
7. Be2 {[%clk 0:02:58]} 7... Bb7 {[%clk 0:02:59]} 8. O-O {[%clk 0:02:58.6]} 8...
Nbd7 {[%clk 0:02:59]} 9. b3 {[%clk 0:02:56.6]} 9... Bd6 {[%clk 0:02:56.9]} 10.
Bb2 {[%clk 0:02:56.6]} 10... Qe7 {[%clk 0:02:53.7]} 11. Ng5 {[%clk 0:02:50.1]}
11... e5 {[%clk 0:02:47.2]} 12. Qc2 {[%clk 0:02:20.9]} 12... e4 {[%clk
0:02:33.4]} 13. f3 {[%clk 0:02:10.8]} 13... exf3 {[%clk 0:02:31.7]} 14. Bxf3
{[%clk 0:02:11.2]} 14... Qxe3+ {[%clk 0:02:28.2]} 15. Kh1 {[%clk 0:02:11.6]}
15... Qxg5 {[%clk 0:02:28.2]} 16. Bxb7 {[%clk 0:02:09.6]} 16... Rb8 {[%clk
0:02:26.3]} 17. Rae1+ {[%clk 0:02:08.9]} 17... Kf8 {[%clk 0:02:26.5]} 18. Ne4
{[%clk 0:01:37.2]} 18... Nxe4 {[%clk 0:02:26.3]} 19. Qxe4 {[%clk 0:01:36]} 19...
Nf6 {[%clk 0:02:24.4]} 20. Qf3 {[%clk 0:01:26.7]} 20... h5 {[%clk 0:02:16.6]}
21. Re5 {[%clk 0:01:15.6]} 21... Qg4 {[%clk 0:02:08.4]} 22. Qf2 {[%clk
0:01:02.9]} 22... Rxb7 {[%clk 0:02:05.8]} 23. Rf5 {[%clk 0:00:55]} 23... Kg8
{[%clk 0:01:58.3]} 24. d5 {[%clk 0:00:54.9]} 24... Ne4 {[%clk 0:01:58.2]} 25.
Qd4 {[%clk 0:00:46]} 25... f6 {[%clk 0:01:58.2]} 26. R5f4 {[%clk 0:00:26.7]}
26... Bxf4 {[%clk 0:01:54.2]} 27. Qxe4 {[%clk 0:00:27.2]} 27... Be5 {[%clk
0:01:53.5]} 28. Qc2 {[%clk 0:00:19.3]} 28... Bxb2 {[%clk 0:01:50.3]} 29. Qxb2
{[%clk 0:00:19.8]} 29... Qd7 {[%clk 0:01:48.5]} 0-1

[Event "Early-Titled-Tuesday-Blitz-February-27-2024"]
[Site "Chess.com"]
[Date "2024.02.27"]
[Round "4"]
[White "goodluck06"]
[Black "Lovetov"]
[Result "0-1"]
[WhiteElo "2717"]
[BlackElo "2552"]
[TimeControl "180+1"]
[EndTime "8:36:21 PST"]
[Termination "Lovetov won by resignation"]

1. Nf3 {[%clk 0:03:00.9]} 1... c5 {[%clk 0:02:59]} 2. c4 {[%clk 0:03:00.3]} 2...
Nc6 {[%clk 0:02:59.3]} 3. Nc3 {[%clk 0:03:01.2]} 3... g6 {[%clk 0:02:59.2]} 4.
e3 {[%clk 0:03:00.5]} 4... Nf6 {[%clk 0:02:58.4]} 5. d4 {[%clk 0:03:00.8]} 5...
cxd4 {[%clk 0:02:59.3]} 6. exd4 {[%clk 0:03:01.3]} 6... d5 {[%clk 0:02:59.8]} 7.
cxd5 {[%clk 0:03:00.5]} 7... Nxd5 {[%clk 0:03:00.7]} 8. Bc4 {[%clk 0:03:00.5]}
8... e6 {[%clk 0:02:56.9]} 9. Bg5 {[%clk 0:02:50.6]} 9... Be7 {[%clk 0:02:55]}
10. Bxe7 {[%clk 0:02:47.6]} 10... Ncxe7 {[%clk 0:02:53.4]} 11. O-O {[%clk
0:02:46.5]} 11... O-O {[%clk 0:02:47.7]} 12. Ne4 {[%clk 0:02:43.8]} 12... b6
{[%clk 0:02:43]} 13. Ne5 {[%clk 0:02:35.2]} 13... f6 {[%clk 0:02:38.3]} 14. Nf3
{[%clk 0:02:31.4]} 14... Bb7 {[%clk 0:02:35.5]} 15. Re1 {[%clk 0:02:31.5]} 15...
Rc8 {[%clk 0:02:24]} 16. Bb3 {[%clk 0:02:30.9]} 16... Kg7 {[%clk 0:02:18.5]} 17.
Ng3 {[%clk 0:02:28.2]} 17... Qd7 {[%clk 0:02:15.8]} 18. Qd2 {[%clk 0:02:27.6]}
18... Rfe8 {[%clk 0:01:57.9]} 19. h4 {[%clk 0:02:27.4]} 19... Nc7 {[%clk
0:01:47]} 20. Nh2 {[%clk 0:02:22.1]} 20... Qc6 {[%clk 0:01:39.1]} 21. f3 {[%clk
0:02:09.1]} 21... Nf5 {[%clk 0:01:31.6]} 22. Nxf5+ {[%clk 0:02:01.8]} 22... gxf5
{[%clk 0:01:32.5]} 23. Nf1 {[%clk 0:01:54.4]} 23... Qd6 {[%clk 0:01:29.6]} 24.
Rad1 {[%clk 0:01:49.2]} 24... Rcd8 {[%clk 0:01:28.6]} 25. Qf2 {[%clk 0:01:44.6]}
25... Kh8 {[%clk 0:01:24.5]} 26. Qg3 {[%clk 0:01:34.7]} 26... f4 {[%clk
0:01:22.9]} 27. Qg4 {[%clk 0:01:20.1]} 27... Rg8 {[%clk 0:01:19]} 28. Qh5 {[%clk
0:01:20.4]} 28... Bd5 {[%clk 0:01:14.2]} 29. Bxd5 {[%clk 0:01:15.3]} 29... Nxd5
{[%clk 0:01:14.1]} 30. Re4 {[%clk 0:01:15.7]} 30... Rg6 {[%clk 0:01:12.2]} 31.
Rd2 {[%clk 0:01:11.2]} 31... Rdg8 {[%clk 0:01:11.5]} 32. Rde2 {[%clk 0:01:10.7]}
32... Nc7 {[%clk 0:01:09.7]} 33. Rd2 {[%clk 0:01:08.7]} 33... Qf8 {[%clk
0:01:08.3]} 34. Rxf4 {[%clk 0:01:04.1]} 34... Rh6 {[%clk 0:01:04.4]} 0-1

[Event "Early-Titled-Tuesday-Blitz-February-27-2024"]
[Site "Chess.com"]
[Date "2024.02.27"]
[Round "4"]
[White "BilodeauA"]
[Black "sotochess"]
[Result "1-0"]
[WhiteElo "3012"]
[BlackElo "2630"]
[TimeControl "180+1"]
[EndTime "8:36:22 PST"]
[Termination "BilodeauA won on time"]

1. e4 {[%clk 0:03:00.9]} 1... d5 {[%clk 0:02:18.6]} 2. exd5 {[%clk 0:02:56.9]}
2... Qxd5 {[%clk 0:02:19.5]} 3. Nc3 {[%clk 0:02:56.6]} 3... Qa5 {[%clk
0:02:19.4]} 4. Nf3 {[%clk 0:02:56.2]} 4... Nf6 {[%clk 0:02:16.8]} 5. d4 {[%clk
0:02:50.8]} 5... c6 {[%clk 0:02:15.9]} 6. Ne5 {[%clk 0:02:49.4]} 6... Be6 {[%clk
0:02:15]} 7. f4 {[%clk 0:02:45.3]} 7... Nbd7 {[%clk 0:02:13.3]} 8. Be2 {[%clk
0:02:35.9]} 8... Nxe5 {[%clk 0:02:04.5]} 9. fxe5 {[%clk 0:02:35.8]} 9... Ne4
{[%clk 0:02:04.6]} 10. Bd2 {[%clk 0:02:36.1]} 10... Nxd2 {[%clk 0:02:03.7]} 11.
Qxd2 {[%clk 0:02:37]} 11... O-O-O {[%clk 0:01:56.9]} 12. O-O {[%clk 0:02:33.9]}
12... Qxe5 {[%clk 0:01:53.1]} 13. Rad1 {[%clk 0:02:33.6]} 13... Qa5 {[%clk
0:01:49.6]} 14. Qe3 {[%clk 0:02:22.9]} 14... g6 {[%clk 0:01:38.5]} 15. b4 {[%clk
0:02:19.8]} 15... Qa3 {[%clk 0:01:27.2]} 16. d5 {[%clk 0:02:16.5]} 16... Bg7
{[%clk 0:00:39.5]} 17. Rd3 {[%clk 0:02:15.9]} 17... Bf5 {[%clk 0:00:34.6]} 18.
Nb5 {[%clk 0:02:13.3]} 18... Qxb4 {[%clk 0:00:23.6]} 19. Rb3 {[%clk 0:01:56.2]}
19... Qxb3 {[%clk 0:00:13.7]} 20. Nxa7+ {[%clk 0:01:50.9]} 20... Kb8 {[%clk
0:00:12.5]} 21. axb3 {[%clk 0:01:41.4]} 21... Rxd5 {[%clk 0:00:12.2]} 22. Nxc6+
{[%clk 0:01:41.7]} 22... Kc7 {[%clk 0:00:06.9]} 23. Nxe7 {[%clk 0:01:33.7]}
23... Re5 {[%clk 0:00:02.5]} 24. Qc3+ {[%clk 0:01:33.7]} 1-0

[Event "Early-Titled-Tuesday-Blitz-February-27-2024"]
[Site "Chess.com"]
[Date "2024.02.27"]
[Round "4"]
[White "Muslim_player_05"]
[Black "DonJuanEGenaro"]
[Result "1-0"]
[WhiteElo "2463"]
[BlackElo "2021"]
[TimeControl "180+1"]
[EndTime "8:36:23 PST"]
[Termination "Muslim_player_05 won on time"]

1. c4 {[%clk 0:03:00.5]} 1... e6 {[%clk 0:01:14.7]} 2. d4 {[%clk 0:02:54.4]}
2... d5 {[%clk 0:01:14.2]} 3. Nc3 {[%clk 0:02:52.2]} 3... c5 {[%clk 0:01:13.7]}
4. cxd5 {[%clk 0:02:48.7]} 4... cxd4 {[%clk 0:01:13.1]} 5. Qxd4 {[%clk
0:02:47.3]} 5... Nc6 {[%clk 0:01:12.3]} 6. Qd1 {[%clk 0:02:45.1]} 6... exd5
{[%clk 0:01:11.9]} 7. Qxd5 {[%clk 0:02:46]} 7... Be6 {[%clk 0:01:11.1]} 8. Qxd8+
{[%clk 0:02:29.8]} 8... Rxd8 {[%clk 0:01:09.6]} 9. Bd2 {[%clk 0:02:20.9]} 9...
Nb4 {[%clk 0:01:06.5]} 10. Rc1 {[%clk 0:02:16.5]} 10... Nxa2 {[%clk 0:01:00.1]}
11. Nxa2 {[%clk 0:02:16.6]} 11... Bxa2 {[%clk 0:00:59.3]} 12. Ra1 {[%clk
0:01:51.2]} 12... Bb3 {[%clk 0:00:54.7]} 13. Rxa7 {[%clk 0:01:45.4]} 13... Bb4
{[%clk 0:00:46.7]} 14. Nf3 {[%clk 0:01:45.9]} 14... Bxd2+ {[%clk 0:00:07]} 15.
Nxd2 {[%clk 0:01:46.8]} 15... Bd5 {[%clk 0:00:06.7]} 16. e4 {[%clk 0:01:36.5]}
16... Bc6 {[%clk 0:00:04.6]} 17. Bc4 {[%clk 0:01:31.4]} 17... Nf6 {[%clk
0:00:03.5]} 18. f3 {[%clk 0:01:22.8]} 18... O-O {[%clk 0:00:02]} 19. Ke2 {[%clk
0:01:22.9]} 1-0

[Event "Early-Titled-Tuesday-Blitz-February-27-2024"]
[Site "Chess.com"]
[Date "2024.02.27"]
[Round "4"]
[White "Korchmar_Vasiliy"]
[Black "Ati1517"]
[Result "1-0"]
[WhiteElo "2705"]
[BlackElo "2244"]
[TimeControl "180+1"]
[EndTime "8:36:23 PST"]
[Termination "Korchmar_Vasiliy won by resignation"]

1. Nf3 {[%clk 0:02:56.7]} 1... Nf6 {[%clk 0:02:57.4]} 2. c4 {[%clk 0:02:56.9]}
2... g6 {[%clk 0:02:56.8]} 3. Nc3 {[%clk 0:02:55.3]} 3... Bg7 {[%clk 0:02:56.2]}
4. d3 {[%clk 0:02:54.6]} 4... d6 {[%clk 0:02:56]} 5. g3 {[%clk 0:02:54.2]} 5...
O-O {[%clk 0:02:56.1]} 6. Bg2 {[%clk 0:02:54.4]} 6... e5 {[%clk 0:02:56.7]} 7.
O-O {[%clk 0:02:54.6]} 7... Nc6 {[%clk 0:02:57.2]} 8. Rb1 {[%clk 0:02:53.3]}
8... Be6 {[%clk 0:02:54.7]} 9. b4 {[%clk 0:02:51.8]} 9... a6 {[%clk 0:02:51.9]}
10. a4 {[%clk 0:02:51.3]} 10... Nd7 {[%clk 0:02:48.1]} 11. b5 {[%clk 0:02:50.8]}
11... Nd4 {[%clk 0:02:45]} 12. Ng5 {[%clk 0:02:49.7]} 12... c6 {[%clk
0:02:38.7]} 13. e3 {[%clk 0:02:45.5]} 13... Nxb5 {[%clk 0:01:37.3]} 14. axb5
{[%clk 0:02:38.6]} 14... Qxg5 {[%clk 0:01:36]} 15. bxc6 {[%clk 0:02:39.2]} 15...
bxc6 {[%clk 0:01:35.5]} 16. Bxc6 {[%clk 0:02:39.9]} 16... Rab8 {[%clk
0:01:33.5]} 17. Ba3 {[%clk 0:02:35.4]} 17... Nc5 {[%clk 0:01:28.7]} 18. Rxb8
{[%clk 0:02:28.6]} 18... Rxb8 {[%clk 0:01:27.6]} 19. d4 {[%clk 0:02:29.2]} 19...
exd4 {[%clk 0:01:17.5]} 20. exd4 {[%clk 0:02:30.1]} 20... Bxc4 {[%clk 0:01:18]}
21. dxc5 {[%clk 0:02:25.9]} 21... Bxc3 {[%clk 0:01:16.7]} 22. cxd6 {[%clk
0:02:20.3]} 22... Bxf1 {[%clk 0:01:16.5]} 23. Qxf1 {[%clk 0:02:19.6]} 23... Bb4
{[%clk 0:01:07.6]} 24. Qxa6 {[%clk 0:01:42.9]} 24... Bxa3 {[%clk 0:00:58.9]} 25.
Qxa3 {[%clk 0:01:43.8]} 25... Rd8 {[%clk 0:00:59]} 26. d7 {[%clk 0:01:43.7]}
26... Qf5 {[%clk 0:00:56.9]} 27. Qe7 {[%clk 0:01:40.8]} 27... Qa5 {[%clk
0:00:56.7]} 28. Bd5 {[%clk 0:01:33.3]} 28... Rf8 {[%clk 0:00:54.2]} 29. Bxf7+
{[%clk 0:01:27.9]} 29... Kg7 {[%clk 0:00:42.2]} 30. Be8+ {[%clk 0:01:27.8]}
30... Kh6 {[%clk 0:00:41.5]} 31. Qxf8+ {[%clk 0:01:27.7]} 31... Kh5 {[%clk
0:00:34]} 32. Qf3+ {[%clk 0:01:25.6]} 32... Kg5 {[%clk 0:00:33.3]} 33. Qf4+
{[%clk 0:01:25]} 1-0

[Event "Early-Titled-Tuesday-Blitz-February-27-2024"]
[Site "Chess.com"]
[Date "2024.02.27"]
[Round "4"]
[White "InitiatingASC"]
[Black "lluiss"]
[Result "1-0"]
[WhiteElo "2370"]
[BlackElo "2169"]
[TimeControl "180+1"]
[EndTime "8:36:23 PST"]
[Termination "InitiatingASC won on time"]

1. e4 {[%clk 0:02:54.4]} 1... e6 {[%clk 0:02:58.2]} 2. c4 {[%clk 0:02:53.3]}
2... c5 {[%clk 0:02:56]} 3. d4 {[%clk 0:02:51]} 3... cxd4 {[%clk 0:02:56]} 4.
Qxd4 {[%clk 0:02:50.4]} 4... Nc6 {[%clk 0:02:54.6]} 5. Qe3 {[%clk 0:02:50.6]}
5... Qa5+ {[%clk 0:02:47.1]} 6. Bd2 {[%clk 0:02:49.6]} 6... Qc5 {[%clk
0:02:47.1]} 7. Qg3 {[%clk 0:02:41.5]} 7... Nf6 {[%clk 0:02:42.3]} 8. Nc3 {[%clk
0:02:40.3]} 8... a6 {[%clk 0:02:30.9]} 9. O-O-O {[%clk 0:02:31]} 9... b5 {[%clk
0:01:28.4]} 10. cxb5 {[%clk 0:02:22.6]} 10... axb5 {[%clk 0:01:26.2]} 11. Bxb5
{[%clk 0:02:16.7]} 11... Ba6 {[%clk 0:01:20.4]} 12. Bxa6 {[%clk 0:02:06.5]}
12... Rxa6 {[%clk 0:01:19.5]} 13. Kb1 {[%clk 0:02:06.7]} 13... Qa5 {[%clk
0:01:09.4]} 14. Nge2 {[%clk 0:02:02]} 14... Nxe4 {[%clk 0:00:47.9]} 15. Nxe4
{[%clk 0:01:52.1]} 15... Qxa2+ {[%clk 0:00:47.5]} 16. Kc1 {[%clk 0:01:45.6]}
16... Ba3 {[%clk 0:00:27.7]} 17. Qxg7 {[%clk 0:01:33.7]} 17... Qc4+ {[%clk
0:00:08.2]} 18. N4c3 {[%clk 0:01:19.1]} 18... Bxb2+ {[%clk 0:00:06.6]} 19. Kxb2
{[%clk 0:01:19.3]} 19... Ra2+ {[%clk 0:00:06.5]} 20. Nxa2 {[%clk 0:01:18.3]} 1-0